bitfinex-derivatives/quotes_BNBF0:USTF0_20250130
["timestamp","ask_amount","ask_price","bid_price","bid_amount"]
[1738273645843,1.1014699,678.6,678.37,1.054]
[1738273652446,0.56753949,679.02,678.37,1.054]
[1738273652447,1.1014699,678.63,678.37,1.054]
[1738273653450,0.27089811,678.62,678.37,1.054]
[1738273654848,1.1014699,678.63,678.37,1.054]
[1738273655043,0.27089836,678.62,678.37,1.054]
[1738273655549,1.1014699,678.63,678.37,1.054]
[1738273655953,1.1014699,678.6,678.37,1.054]
[1738273660055,1.1014699,678.65,678.37,1.054]
[1738273663252,1.1014699,678.67,678.37,1.054]
[1738273667156,1.1014699,678.66,678.37,1.054]
[1738273671559,1.1014699,678.61,678.37,1.054]
[1738273674364,1.1014699,678.54,678.37,1.054]
[1738273677464,1.1014699,678.53,678.37,1.054]
[1738273681363,1.1014699,678.45,678.37,1.054]
[1738273681566,1.1014699,678.45,677.71,1.10092913]
[1738273682763,1.1014699,678.45,677.71,2.36792913]
[1738273684971,1.1014699,678.43,677.71,1.267]
[1738273688978,1.1014699,678.45,677.71,1.267]
[1738273691877,1.1014699,678.46,677.71,1.267]
[1738273694877,1.1014699,678.53,677.71,1.267]
[1738273699085,1.1014699,678.59,677.71,1.267]
[1738273702588,1.1014699,678.55,677.71,1.267]
[1738273703383,1.1014699,678.55,677.72,1.5393065]
[1738273706092,0.27095754,678.54,677.72,1.5393065]
[1738273706989,1.1014699,678.5,677.72,1.5393065]
[1738273707186,0.27095754,678.49,677.72,1.5393065]
[1738273707685,0.27096304,678.48,677.72,1.5393065]
[1738273707884,0.27096304,678.49,677.72,1.5393065]
[1738273708086,0.27096304,678.48,677.72,1.5393065]
[1738273708286,0.27096304,678.47,677.72,1.5393065]
[1738273708490,0.27096304,678.46,677.72,1.5393065]
[1738273708788,0.27096304,678.45,677.72,1.5393065]
[1738273709092,1.1014699,678.5,677.72,1.5393065]
[1738273709391,0.27096152,678.49,677.72,1.5393065]
[1738273709989,0.27096152,678.49,677.72,2.5853065]
[1738273709990,1.1014699,678.43,677.72,2.5853065]
[1738273712496,1.1014699,678.41,677.72,2.5853065]
[1738273716297,1.1014699,678.4,677.72,2.5853065]
[1738273718193,1.1014699,678.4,677.72,1.046]
[1738273718994,1.1014699,678.44,677.72,1.046]
[1738273722303,1.1014699,678.73,677.72,1.046]
[1738273722304,1.1014699,678.42,677.72,1.046]
[1738273725404,1.1014699,678.44,677.72,1.046]
[1738273729008,1.1014699,678.42,677.72,1.046]
[1738273731908,1.1014699,678.39,677.72,1.046]
[1738273736005,1.1014699,678.34,677.72,1.046]
[1738273740115,1.1014699,678.35,677.72,1.046]
[1738273743912,0.29467232,678.72,677.72,1.046]
[1738273743913,1.1014699,678.54,677.72,1.046]
[1738273747718,1.1014699,678.52,677.72,1.046]
[1738273750615,0.27098404,678.51,677.72,1.046]
[1738273751119,1.1014699,678.51,677.72,1.046]
[1738273754620,0.29467232,678.72,677.72,1.046]
[1738273754621,1.1014699,678.39,677.72,1.046]
[1738273757324,1.1014699,678.44,677.72,1.046]
[1738273759826,1.1014699,678.42,677.72,1.046]
[1738273763826,1.1014699,678.35,677.72,1.046]
[1738273767524,1.1014699,678.33,677.72,1.046]
[1738273771331,1.1014699,678.38,677.72,1.046]
[1738273773933,1.1014699,678.34,677.72,1.046]
[1738273780438,1.1014699,678.4,677.72,1.046]
[1738273783931,1.1014699,678.41,677.72,1.046]
[1738273786837,1.1014699,678.39,677.72,1.046]
[1738273790239,1.1014699,678.37,677.72,1.046]
[1738273793942,1.1014699,678.35,677.72,1.046]
[1738273797047,1.1014699,678.37,677.72,1.046]
[1738273800050,1.1014699,678.42,677.72,1.046]
[1738273802349,1.1014699,678.41,677.72,1.046]
[1738273804953,1.1014699,678.4,677.72,1.046]
[1738273807457,1.1014699,678.37,677.72,1.046]
[1738273814161,1.1014699,678.58,677.72,1.046]
[1738273817260,1.1014699,678.61,677.72,1.046]
[1738273821665,1.1014699,678.65,677.72,1.046]
[1738273821857,0.27091668,678.64,677.72,1.046]
[1738273824564,1.1014699,678.65,677.72,1.046]
[1738273824863,0.27090201,678.64,677.72,1.046]
[1738273825066,1.1014699,678.6,677.72,1.046]
[1738273826961,1.1014699,678.6,677.72,2.5851363]
[1738273829067,1.1014699,678.64,677.72,2.5851363]
[1738273832164,0.29467232,678.72,677.72,2.5851363]
[1738273838269,0.27089371,678.71,677.73,0.25779259]
[1738273839567,0.27089371,678.71,677.73,1.08979259]
[1738273839767,0.27089371,678.71,677.74,0.25779259]
[1738273839967,0.27089045,678.7,677.73,0.832]
[1738273840369,0.27089045,678.71,677.74,0.2577896]
[1738273840571,0.27089045,678.7,677.74,0.2577896]
[1738273840872,0.27089045,678.69,677.74,0.2577896]
[1738273841074,0.27089045,678.71,677.74,0.2577896]
[1738273841273,0.27089045,678.7,677.74,0.2577896]
[1738273841472,0.29467232,678.72,677.74,0.2577896]
[1738273841473,0.27089045,678.71,677.74,0.2577896]
[1738273841672,0.27089045,678.7,677.74,0.2577896]
[1738273841873,0.27089045,678.69,677.74,0.2577896]
[1738273842075,1.1014699,678.62,677.74,0.2577896]
[1738273842270,0.27089045,678.61,677.74,0.2577896]
[1738273843376,1.1014699,678.62,677.73,0.832]
[1738273845075,1.1014699,678.59,677.73,0.832]
[1738273848578,0.29467232,678.72,677.73,0.832]
[1738273848579,1.1014699,678.57,677.73,0.832]
[1738273851780,0.29467232,678.72,677.73,0.832]
[1738273851781,1.1014699,678.58,677.73,0.832]
[1738273854584,0.29467232,678.72,677.73,0.832]
[1738273854585,1.1014699,678.56,677.73,0.832]
[1738273854785,1.1014699,678.56,677.74,0.257788]
[1738273855381,1.1014699,678.56,677.73,0.832]
[1738273855580,1.1014699,678.56,677.74,0.25779005]
[1738273857177,0.29467232,678.72,677.73,0.832]
[1738273857178,1.1014699,678.52,677.73,0.832]
[1738273857384,1.1014699,678.52,677.74,0.25779151]
[1738273858785,1.1014699,678.52,677.75,0.25778506]
[1738273858985,1.1014699,678.52,677.73,0.832]
[1738273859188,1.1014699,678.52,677.74,0.25778485]
[1738273859483,1.1014699,678.52,677.73,0.832]
[1738273859689,1.1014699,678.52,677.74,0.25776796]
[1738273860388,1.1014699,678.5,677.74,1.10092913]
[1738273860583,1.1014699,678.5,677.75,0.25776822]
[1738273861487,1.1014699,678.5,677.74,1.10092913]
[1738273862186,1.1014699,678.5,677.75,0.25776657]
[1738273862789,0.29467232,678.72,677.75,0.25776657]
[1738273862790,1.1014699,678.58,677.75,0.25776657]
[1738273862991,1.1014699,678.58,677.73,1.10092913]
[1738273862992,1.1014699,678.58,677.74,0.25776657]
[1738273863191,1.1014699,678.58,677.75,0.25776657]
[1738273863391,1.1014699,678.58,677.76,0.25776345]
[1738273863591,1.1014699,678.58,677.73,1.10092913]
[1738273863791,1.1014699,678.58,677.74,0.2577635]
[1738273865092,1.1014699,678.58,677.75,0.25775571]
[1738273865293,1.1014699,678.58,677.74,0.25775571]
[1738273865493,1.1014699,678.58,677.75,0.25775571]
[1738273865689,1.1014699,678.58,677.74,0.25775571]
[1738273865893,1.1014699,678.58,677.75,0.25775571]
[1738273866095,1.1014699,678.61,677.76,0.25775571]
[1738273866395,1.1014699,678.61,677.77,0.25775571]
[1738273866594,1.1014699,678.61,677.75,0.25775571]
[1738273866795,1.1014699,678.61,677.76,0.25775571]
[1738273866995,1.1014699,678.61,677.75,0.25775571]
[1738273867196,1.1014699,678.61,677.76,0.25775571]
[1738273867394,1.1014699,678.61,677.77,0.25775571]
[1738273867694,1.1014699,678.61,677.78,0.25775571]
[1738273867895,1.1014699,678.61,677.75,0.25775571]
[1738273868096,1.1014699,678.61,677.76,0.25775571]
[1738273868295,1.1014699,678.61,677.75,0.25775571]
[1738273868490,1.1014699,678.61,677.76,0.25774085]
[1738273868693,1.1014699,678.61,677.77,0.25774085]
[1738273868894,1.1014699,678.61,677.75,0.25774085]
[1738273869193,1.1014699,678.61,677.76,0.25774085]
[1738273869394,1.1014699,678.61,677.75,0.25774085]
[1738273869690,1.1014699,678.71,677.75,0.25774085]
[1738273870495,1.1014699,678.71,677.74,1.10092913]
[1738273873601,1.1014699,678.85,677.73,2.57789241]
[1738273876402,1.1014699,678.89,677.73,2.57789241]
[1738273879104,1.1014699,678.9,677.73,2.57789241]
[1738273880406,0.2708385,678.89,677.74,0.25773773]
[1738273885510,1.1014699,678.78,677.74,0.25773773]
[1738273885906,1.1014699,678.78,677.75,0.2577371]
[1738273886108,1.1014699,678.78,677.74,0.2577371]
[1738273886304,1.1014699,678.78,677.75,0.2577371]
[1738273886511,1.1014699,678.78,677.76,0.2577371]
[1738273886706,1.1014699,678.78,677.74,0.2577371]
[1738273886911,1.1014699,678.78,677.75,0.2577371]
[1738273887106,1.1014699,678.78,677.74,0.2577371]
[1738273887309,1.1014699,678.78,677.75,0.2577371]
[1738273887509,1.1014699,678.78,677.73,2.57789241]
[1738273887712,1.1014699,678.78,677.74,0.25773882]
[1738273889112,1.1014699,678.77,677.74,0.25773882]
[1738273890912,1.1014699,678.77,677.73,1.53889241]
[1738273891108,1.1014699,678.77,677.74,0.25772133]
[1738273892214,1.1014699,678.77,677.74,1.21272133]
[1738273892410,1.1014699,678.77,677.75,0.25772133]
[1738273893313,1.1014699,679.06,677.75,0.25772133]
[1738273893314,1.1014699,678.8,677.76,1.10092913]
[1738273893516,1.1014699,678.8,677.77,0.25772133]
[1738273894313,1.1014699,678.8,677.76,1.10092913]
[1738273894521,1.1014699,678.8,677.77,0.25771296]
[1738273895820,1.1014699,678.8,677.8,1.10092913]
[1738273896019,1.1014699,678.8,677.81,0.25771296]
[1738273897823,1.1014699,678.8,677.8,1.10092913]
[1738273898023,1.1014699,678.8,677.81,0.25768464]
[1738273898723,1.1014699,678.92,677.83,1.10092913]
[1738273898923,1.1014699,678.92,677.84,0.25768464]
[1738273901219,1.1014699,678.92,677.83,1.10092913]
[1738273901424,1.1014699,678.91,677.84,0.2576831]
[1738273901625,1.1014699,678.91,677.82,0.2576831]
[1738273905029,1.1014699,678.93,677.82,0.2576831]
[1738273905221,0.27078762,678.92,677.82,0.2576831]
[1738273907928,1.1014699,678.93,677.82,0.2576831]
[1738273908325,1.1014699,678.87,677.86,1.10092913]
[1738273908528,1.1014699,678.87,677.87,0.2576831]
[1738273909935,1.1014699,678.87,677.86,1.10092913]
[1738273910130,1.1014699,678.87,677.87,0.25768868]
[1738273911531,1.1014699,678.93,677.87,0.25768868]
[1738273911733,1.1014699,678.93,677.78,2.63946435]
[1738273913526,1.1014699,678.93,677.79,0.25768775]
[1738273915127,1.1014699,678.93,677.8,0.25768366]
[1738273915341,1.1014699,678.94,677.8,2.21992913]
[1738273915535,1.1014699,678.94,677.81,0.25768366]
[1738273917939,0.2707811,678.93,677.81,0.25768366]
[1738273918440,0.2707811,678.93,677.85,1.10092913]
[1738273918633,0.2707811,678.95,677.85,1.10092913]
[1738273918835,0.2707811,678.95,677.86,0.25768366]
[1738273920239,1.1014699,678.96,677.85,1.10092913]
[1738273920434,0.27078092,678.95,677.86,0.25768061]
[1738273920640,1.1014699,678.87,677.91,1.10092913]
[1738273920938,1.1014699,678.87,677.92,0.25768061]
[1738273923238,1.1014699,678.87,677.93,0.25768056]
[1738273923533,1.1014699,678.87,677.94,0.25768056]
[1738273923737,1.1014699,678.87,677.92,0.25768056]
[1738273924344,1.1014699,678.87,677.94,1.10092913]
[1738273924542,1.1014699,678.87,677.95,0.25768056]
[1738273925042,1.1014699,678.87,677.96,0.25767738]
[1738273925241,1.1014699,678.87,677.95,0.25767738]
[1738273925442,1.1014699,678.87,677.96,0.25767738]
[1738273925645,1.1014699,678.87,677.95,0.25767738]
[1738273925941,1.1014699,678.87,677.96,0.25767738]
[1738273926241,1.1014699,678.87,677.97,0.25767738]
[1738273926440,1.1014699,678.87,677.95,0.25767738]
[1738273927341,1.1014699,678.82,677.95,1.35860651]
[1738273927542,1.1014699,678.82,677.96,0.25767738]
[1738273929644,1.1014699,678.82,677.95,1.10092913]
[1738273930252,1.1014699,678.78,677.97,1.10092913]
[1738273933147,1.1014699,678.75,677.89,1.10092913]
[1738273933348,1.1014699,678.75,677.9,0.25767943]
[1738273935555,1.1014699,678.75,677.9,1.57067943]
[1738273935751,1.1014699,678.75,677.91,0.25767943]
[1738273936158,1.1014699,678.86,677.91,0.25767943]
[1738273940260,1.1014699,678.88,677.92,1.35860557]
[1738273940563,1.1014699,678.88,677.93,0.25767644]
[1738273942560,1.1014699,678.9,677.95,1.10092913]
[1738273942862,1.1014699,678.9,677.96,0.25767644]
[1738273945265,1.1014699,678.84,677.98,1.10092913]
[1738273945564,1.1014699,678.84,677.99,0.25767644]
[1738273947264,1.1014699,678.84,678.0,0.25765947]
[1738273947464,1.1014699,678.84,678.01,0.25765947]
[1738273947665,1.1014699,678.84,677.99,0.25765947]
[1738273947866,1.1014699,678.84,677.98,1.10092913]
[1738273948969,1.1014699,678.91,677.97,1.10092913]
[1738273952171,1.1014699,679.17,677.9,1.313]
[1738273956973,1.1014699,679.18,677.9,1.313]
[1738273957868,0.27074986,679.17,677.91,0.2576498]
[1738273960771,0.27074986,679.17,677.88,0.2576498]
[1738273960974,0.27074345,679.16,677.89,0.25764343]
[1738273961172,0.27074345,679.16,677.87,1.53837653]
[1738273961173,0.27074345,679.17,677.88,0.25764343]
[1738273961370,0.27074345,679.16,677.89,0.25764343]
[1738273961570,1.1014699,678.99,677.94,1.10092913]
[1738273961774,1.1014699,678.99,677.95,0.25764343]
[1738273962574,1.1014699,678.99,677.94,2.12392913]
[1738273962773,1.1014699,678.99,677.95,0.2576438]
[1738273964479,1.1014699,678.99,677.96,1.10092913]
[1738273964677,1.1014699,678.99,677.97,0.2576438]
[1738273966079,1.1014699,678.99,677.96,1.10092913]
[1738273966275,1.1014699,678.99,677.97,0.25764129]
[1738273968483,1.1014699,679.0,677.97,1.35857042]
[1738273968676,1.1014699,679.0,677.98,0.25764129]
[1738273971185,1.1014699,679.0,677.97,1.10092913]
[1738273971484,1.1014699,679.0,677.98,0.25763893]
[1738273972780,1.1014699,679.02,677.98,0.25763893]
[1738273972985,1.1014699,679.02,677.96,1.10092913]
[1738273973287,1.1014699,679.02,677.99,0.25763861]
[1738273973486,1.1014699,679.02,677.96,1.10092913]
[1738273973785,1.1014699,679.02,677.97,0.2576378]
[1738273975083,1.1014699,679.02,677.98,0.25763791]
[1738273975482,1.1014699,679.02,677.99,0.25763791]
[1738273975783,1.1014699,678.99,678.0,1.35856704]
[1738273975984,1.1014699,678.99,678.01,0.25763791]
[1738273977988,0.27074161,678.98,678.01,0.25763791]
[1738273978381,1.1014699,678.99,678.01,0.25763791]
[1738273978781,0.27074137,678.98,678.01,0.25763791]
[1738273979489,1.1014699,678.99,678.01,0.25763791]
[1738273979790,1.1014699,678.97,678.02,1.10092913]
[1738273979990,1.1014699,678.97,678.03,0.25763791]
[1738273980190,1.1014699,678.97,678.02,1.10092913]
[1738273980390,1.1014699,678.97,678.03,0.25763956]
[1738273980691,1.1014699,678.97,678.04,0.25764089]
[1738273980887,1.1014699,678.97,678.03,0.25764089]
[1738273981192,1.1014699,678.97,678.04,1.41364089]
[1738273981391,1.1014699,678.97,678.05,0.25764089]
[1738273982194,1.1014699,678.88,678.1,1.10092913]
[1738273982393,1.1014699,678.88,678.11,0.25764089]
[1738273983093,1.1014699,678.88,678.1,1.10092913]
[1738273983388,1.1014699,678.88,678.11,0.25763893]
[1738273984592,1.1014699,678.88,678.1,1.10092913]
[1738273984989,1.1014699,678.88,678.11,0.25763658]
[1738273985494,1.1014699,678.87,678.11,0.25763658]
[1738273987997,1.1014699,678.87,678.1,1.10092913]
[1738273988195,1.1014699,678.87,678.11,0.25763048]
[1738273988899,1.1014699,678.87,678.11,1.35855961]
[1738273989097,1.1014699,678.87,678.12,0.25763048]
[1738273989793,1.1014699,678.87,678.11,1.10092913]
[1738273990000,1.1014699,678.87,678.12,0.25763294]
[1738273992000,1.1014699,678.89,678.12,1.35856207]
[1738273992198,1.1014699,678.89,678.13,0.25763294]
[1738273993102,1.1014699,678.89,678.12,1.10092913]
[1738273993693,1.1014699,678.89,678.13,0.25763628]
[1738273994298,1.1014699,678.89,678.13,1.35856541]
[1738273994499,1.1014699,678.89,678.13,1.10092913]
[1738273996903,1.1014699,678.87,678.14,0.2576303]
[1738273997200,1.1014699,678.87,678.14,1.23]
[1738274000499,1.1014699,678.88,678.14,1.23]
[1738274003814,1.1014699,678.87,678.14,1.23]
[1738274009117,1.1014699,678.86,678.14,1.23]
[1738274011614,1.1014699,678.87,678.14,1.23]
[1738274014715,1.1014699,678.86,678.14,1.23]
[1738274020326,1.1014699,678.85,678.14,1.23]
[1738274023930,1.1014699,678.86,678.14,1.23]
[1738274026730,2.24883439,679.37,678.14,1.23]
[1738274026731,1.1014699,678.89,678.14,1.23]
[1738274032134,1.1014699,678.9,678.14,1.23]
[1738274035529,1.1014699,678.89,678.14,1.23]
[1738274038537,1.1014699,678.84,678.14,1.23]
[1738274041430,1.1014699,678.85,678.14,1.23]
[1738274044243,1.1014699,678.97,678.14,2.33092913]
[1738274047445,2.24883439,679.54,678.14,2.33092913]
[1738274047446,1.1014699,679.01,678.14,1.23]
[1738274049541,1.08795751,679.01,678.15,0.25749711]
[1738274049746,1.08795751,679.01,678.1,1.10092913]
[1738274049945,1.08795751,679.01,678.11,0.25691836]
[1738274050146,5.29848588,685.56,678.11,0.25691836]
[1738274050147,1.1014699,679.23,678.11,0.25691836]
[1738274050344,1.1014699,679.23,678.08,1.10092913]
[1738274050345,0.27070383,679.22,678.09,1.79498326]
[1738274050541,0.27070383,679.22,678.1,0.25691836]
[1738274050846,0.27070383,679.22,678.1,1.24991836]
[1738274051046,1.1014699,679.23,678.1,0.993]
[1738274051249,0.27070238,679.22,678.11,0.25684884]
[1738274052950,0.27070543,679.21,678.12,0.2568239]
[1738274053244,0.27070543,679.21,678.1,0.993]
[1738274053245,0.27070543,679.2,678.13,0.2568239]
[1738274053443,0.27070543,679.27,678.11,0.2568239]
[1738274054046,0.27070543,679.27,678.1,0.993]
[1738274055148,0.27070543,679.27,678.11,0.25678779]
[1738274056349,0.27070543,679.27,678.1,0.993]
[1738274056750,0.27070543,679.26,678.1,0.993]
[1738274056950,0.27070543,679.37,678.1,0.993]
[1738274057249,0.27070543,679.36,678.1,0.993]
[1738274057452,0.27070543,679.37,678.1,0.993]
[1738274060551,0.27070543,679.36,678.1,0.993]
[1738274060752,0.27070543,679.39,678.1,0.993]
[1738274060953,0.27070543,679.38,678.1,0.993]
[1738274061153,0.27070543,679.39,678.1,0.993]
[1738274061453,1.1014699,679.4,678.1,0.993]
[1738274061654,0.27070646,679.39,678.1,0.993]
[1738274062651,0.27070646,679.39,678.1,0.98009495]
[1738274063350,0.27070646,679.38,678.1,0.98009495]
[1738274063551,0.27070646,679.47,678.1,0.98009495]
[1738274063754,0.56505785,679.46,678.1,0.98009495]
[1738274063954,0.56506218,679.45,678.1,0.98009495]
[1738274064254,0.56506652,679.44,678.1,0.98009495]
[1738274064554,0.56507085,679.43,678.1,0.98009495]
[1738274064753,0.56507518,679.42,678.1,0.98009495]
[1738274064948,0.29436872,679.42,678.1,0.98009495]
[1738274065152,0.2707041,679.41,678.1,0.98009495]
[1738274069356,1.1014699,679.4,678.1,0.98009495]
[1738274069557,0.2707041,679.39,678.11,0.25736262]
[1738274071563,1.1014699,679.21,678.12,1.10092913]
[1738274071863,0.2707041,679.2,678.13,0.25736262]
[1738274073664,0.27070478,679.19,678.14,0.25746447]
[1738274073863,0.27070478,679.2,678.13,0.25746447]
[1738274074965,1.1014699,679.19,678.15,1.10092913]
[1738274075264,0.27070478,679.18,678.16,0.25746447]
[1738274076066,0.27070478,679.18,678.16,1.12746447]
[1738274076367,0.27070478,679.18,678.17,0.25746447]
[1738274077362,1.1014699,679.17,678.17,0.25746447]
[1738274077566,0.27070478,679.16,678.17,0.25746447]
[1738274080273,0.27070478,679.16,678.19,1.10092913]
[1738274080274,1.1014699,679.13,678.19,1.10092913]
[1738274080477,0.27070478,679.12,678.2,0.25746447]
[1738274081478,0.27070478,679.12,678.19,1.10092913]
[1738274085481,0.27070478,679.12,678.17,1.10092913]
[1738274085482,1.1014699,679.11,678.17,1.10092913]
[1738274085677,0.27070478,679.1,678.17,1.10092913]
[1738274088182,0.27070478,679.1,678.17,2.09392913]
[1738274088383,0.27070478,679.1,678.18,0.25755685]
[1738274088780,0.27070478,679.11,678.18,0.25755685]
[1738274088981,0.27070478,679.09,678.18,0.25755685]
[1738274089179,0.27070478,679.08,678.18,0.25755685]
[1738274089377,0.27070478,679.11,678.18,0.25755685]
[1738274091989,0.27070478,679.1,678.18,0.25755685]
[1738274092183,0.27070478,679.12,678.18,0.25755685]
[1738274092383,1.1014699,679.13,678.17,2.09392913]
[1738274092583,0.27070766,679.12,678.18,0.25755668]
[1738274093888,1.1014699,679.13,678.17,2.09392913]
[1738274094088,0.27070869,679.11,678.19,0.25757938]
[1738274094290,0.27070869,679.1,678.17,2.09392913]
[1738274094587,1.1014699,679.13,678.17,2.09392913]
[1738274094588,0.27070869,679.09,678.18,0.25757061]
[1738274094787,0.27070869,679.08,678.18,0.25757061]
[1738274094987,0.27070869,679.12,678.18,0.25757061]
[1738274095190,1.37217859,679.12,678.19,1.10092913]
[1738274095388,0.27070869,679.11,678.2,0.25757061]
[1738274100693,1.1014699,679.12,678.19,1.10092913]
[1738274100886,0.27071411,679.11,678.19,1.10092913]
[1738274101288,0.27071411,679.11,678.2,0.25755727]
[1738274102889,0.27071411,679.12,678.2,0.25755727]
[1738274103091,0.27071411,679.11,678.2,0.25755727]
[1738274103292,0.27071411,679.12,678.2,0.25755727]
[1738274103489,0.27071411,679.11,678.2,0.25755727]
[1738274103796,0.27070733,679.1,678.19,1.10092913]
[1738274103988,0.27070733,679.12,678.2,0.25755625]
[1738274104295,0.27070733,679.11,678.2,0.25755625]
[1738274104491,0.27070733,679.1,678.2,0.25755625]
[1738274104696,0.27070733,679.09,678.2,0.25755625]
[1738274104995,1.1014699,679.13,678.2,0.25755625]
[1738274104996,0.27070733,679.08,678.2,0.25755625]
[1738274105195,0.27070733,679.12,678.2,0.25755625]
[1738274105395,0.27070733,679.07,678.2,1.24655625]
[1738274105694,1.1014699,679.13,678.2,0.989]
[1738274105895,1.1014699,679.13,678.2,2.08992913]
[1738274106090,0.27070735,679.12,678.2,2.08992913]
[1738274108097,0.27070735,679.12,678.21,0.25757632]
[1738274108498,1.1014699,679.13,678.2,2.08992913]
[1738274109200,1.1014699,679.12,678.2,2.08992913]
[1738274112403,1.1014699,679.33,678.2,0.989]
[1738274112597,0.27068956,679.32,678.2,0.989]
[1738274114004,0.27068242,679.31,678.2,0.989]
[1738274114203,0.27068242,679.3,678.2,0.989]
[1738274114501,0.27068242,679.29,678.2,0.989]
[1738274114703,0.27068242,679.32,678.2,0.989]
[1738274115900,0.27068242,679.31,678.2,0.989]
[1738274116100,1.1014699,679.39,678.2,0.989]
[1738274116299,0.27066811,679.38,678.2,0.989]
[1738274117505,0.27066125,679.37,678.2,0.989]
[1738274117706,0.27066125,679.36,678.2,0.989]
[1738274117902,0.27066125,679.35,678.2,0.989]
[1738274118108,1.1014699,679.39,678.2,0.989]
[1738274118302,0.27065275,679.38,678.2,0.989]
[1738274119207,0.27065275,679.37,678.2,0.989]
[1738274119407,0.27065275,679.36,678.2,0.989]
[1738274119708,1.1014699,679.48,678.2,0.989]
[1738274120006,0.27065021,679.41,678.2,0.989]
[1738274120405,0.27065021,679.41,678.21,0.2575173]
[1738274121111,1.1014699,679.48,678.2,0.989]
[1738274121310,1.1014699,679.48,678.22,0.29488956]
[1738274121806,8.83039805,686.63,678.22,0.29488956]
[1738274121807,1.1014699,679.55,678.22,0.29488956]
[1738274124416,2.24883439,680.0,678.22,0.29488956]
[1738274124613,1.1014699,680.11,678.22,0.29488956]
[1738274126714,1.1014699,680.11,678.22,1.57888956]
[1738274128612,1.1014699,680.19,678.22,1.57888956]
[1738274130915,1.1014699,680.19,678.23,0.25733395]
[1738274131119,1.1014699,680.19,678.24,0.29488086]
[1738274131419,1.1014699,680.19,678.25,0.25733395]
[1738274131611,1.1014699,680.19,678.26,0.29487217]
[1738274131812,2.3272618,680.63,678.26,0.29487217]
[1738274131813,1.1014699,680.22,678.27,0.25733395]
[1738274132017,1.1014699,680.22,678.28,0.29486347]
[1738274132229,1.1014699,680.22,678.29,0.25733395]
[1738274132519,1.1014699,680.22,678.3,0.29485478]
[1738274132720,1.1014699,680.22,678.31,0.25733395]
[1738274135116,0.27058488,679.41,678.31,0.25733395]
[1738274146334,1.1014699,679.71,678.3,0.29485478]
[1738274146533,0.27057227,679.41,678.31,0.25735248]
[1738274149736,1.1014699,679.69,678.3,1.39578391]
[1738274149935,0.27057179,679.41,678.31,0.25734825]
[1738274150833,1.1014699,679.69,678.31,0.25734825]
[1738274151233,0.27058524,679.41,678.31,0.25734825]
[1738274151437,1.1014699,679.69,678.3,1.39578391]
[1738274151730,0.27058184,679.41,678.31,0.25736837]
[1738274152538,0.27058184,679.41,678.37,1.10092913]
[1738274152738,0.27058184,679.41,678.38,0.25736837]
[1738274153540,1.1014699,679.63,678.38,0.25736837]
[1738274153943,1.1014699,679.63,678.38,1.28036837]
[1738274154639,1.1014699,679.56,678.41,1.10092913]
[1738274155643,1.1014699,679.56,678.42,0.25736837]
[1738274156142,1.1014699,679.56,678.41,1.10092913]
[1738274156443,1.1014699,679.56,678.42,0.25725323]
[1738274157539,0.56741748,679.8,678.42,0.25725323]
[1738274157540,1.1014699,679.51,678.46,1.10092913]
[1738274157742,1.1014699,679.51,678.47,0.25725323]
[1738274157941,1.1014699,679.51,678.46,1.10092913]
[1738274158142,1.1014699,679.51,678.47,0.25726369]
[1738274158341,1.1014699,679.51,678.46,1.10092913]
[1738274159545,1.1014699,679.51,678.47,0.25727781]
[1738274161043,1.1014699,679.5,678.47,0.25727781]
[1738274163249,1.1014699,679.5,678.46,1.10092913]
[1738274163750,1.1014699,679.5,678.38,1.023]
[1738274163751,1.1014699,679.51,678.48,1.10092913]
[1738274166352,2.24883439,680.02,678.48,1.10092913]
[1738274166353,1.1014699,679.52,678.48,1.10092913]
[1738274167548,1.1014699,679.52,678.49,0.25722832]
[1738274168349,1.1014699,679.52,678.48,1.10092913]
[1738274169153,8.83039805,685.86,678.48,1.10092913]
[1738274169154,1.1014699,679.51,678.48,1.10092913]
[1738274171857,1.10374015,679.38,678.44,1.10092913]
[1738274173257,1.10374015,679.38,678.44,2.26792913]
[1738274173855,1.10374015,679.38,678.45,0.25723801]
[1738274174256,1.10374015,679.38,678.44,2.26792913]
[1738274174457,1.10374015,679.38,678.45,0.25725421]
[1738274175152,2.24883439,680.02,678.45,0.25725421]
[1738274175153,1.10374015,679.35,678.45,1.35818334]
[1738274175354,1.10374015,679.35,678.45,1.10092913]
[1738274178359,1.10374015,679.34,678.46,0.25723522]
[1738274181059,1.10374015,679.34,678.47,0.25720511]
[1738274181260,1.10374015,679.34,678.45,1.10092913]
[1738274181261,1.10374015,679.34,678.48,0.25720511]
[1738274181454,1.10374015,679.34,678.45,1.10092913]
[1738274181455,1.10374015,679.34,678.49,0.25720511]
[1738274181760,1.10374015,679.34,678.5,0.25720511]
[1738274181954,1.10374015,679.34,678.46,0.25720511]